bitfinex-derivatives/quotes_ETHF0:USTF0_20250326
["timestamp","ask_amount","ask_price","bid_price","bid_amount"]
[1743010097838,1.4093,2010.8,2010.7,2.05233986]
[1743010098132,2.4038,2010.8,2010.7,2.05233986]
[1743010098435,1.4093,2010.8,2010.7,2.05233986]
[1743010098634,2.4038,2010.8,2010.7,2.73503986]
[1743010102343,2.4038,2010.8,2010.7,1.05778986]
[1743010102639,2.4038,2010.8,2010.7,0.06088986]
[1743010103336,10.7338,2010.8,2010.7,0.06088986]
[1743010103537,11.4016,2010.8,2010.7,0.06088986]
[1743010104328,11.4016,2010.8,2010.3,1.7631593]
[1743010104329,0.9947,2010.4,2010.3,1.7631593]
[1743010104534,4.2025,2010.4,2010.3,2.7600593]
[1743010104831,4.2025,2010.4,2010.3,3.7548093]
[1743010107339,4.2025,2010.4,2010.3,2.7600593]
[1743010107537,4.2025,2010.4,2010.3,3.7548093]
[1743010107936,5.4969,2010.4,2010.3,1.7631593]
[1743010108134,7.9969,2010.4,2010.3,1.7631593]
[1743010108344,0.99505,2009.7,2009.6,0.9682989]
[1743010108532,3.53,2009.8,2009.7,0.99505]
[1743010108738,4.52495,2009.9,2009.8,0.9969]
[1743010109141,4.52495,2009.9,2009.8,0.99497]
[1743010109540,0.995,2009.8,2009.7,3.10161]
[1743010109941,4.2028,2009.8,2009.7,0.9969]
[1743010110938,0.99505,2009.7,2009.6,0.9757614]
[1743010111648,8.22305,2009.7,2009.6,0.9757614]
[1743010111847,10.72305,2009.7,2009.6,0.9757614]
[1743010113950,2.48805,2009.4,2009.0,3.2078]
[1743010114141,0.9953,2009.2,2009.1,0.9969]
[1743010114650,2.3717,2009.2,2009.1,0.9969]
[1743010115349,0.99535,2009.1,2009.0,1.01616313]
[1743010115545,2.37175,2009.1,2009.0,2.01306313]
[1743010116140,2.37175,2009.1,2009.0,3.00846313]
[1743010116549,2.37175,2009.1,2009.0,2.01306313]
[1743010117645,2.37175,2009.1,2009.0,3.00846313]
[1743010117851,2.37175,2009.1,2009.0,4.30876313]
[1743010118656,2.37175,2009.1,2009.0,3.31336313]
[1743010119043,2.37175,2009.1,2009.0,4.30876313]
[1743010119352,2.37175,2009.1,2009.0,3.31336313]
[1743010119551,2.37175,2009.1,2009.0,4.30876313]
[1743010121145,1.3764,2009.1,2009.0,4.30876313]
[1743010121446,6.82518,2009.5,2009.4,0.9952]
[1743010121643,8.22838,2009.5,2009.4,0.9969]
[1743010122248,7.2332,2009.5,2009.4,1.9921]
[1743010122746,11.73035,2009.5,2009.4,0.9738034]
[1743010126140,0.99535,2009.1,2009.0,2.38597]
[1743010126344,0.99535,2009.1,2009.0,3.45121326]
[1743010126544,0.99535,2009.1,2009.0,4.44811326]
[1743010126743,2.35685,2009.1,2009.0,4.44811326]
[1743010127553,1.3615,2009.1,2009.0,4.44811326]
[1743010128057,2.35685,2009.1,2009.0,4.44811326]
[1743010129344,2.35685,2009.1,2009.0,3.45274326]
[1743010130556,8.18685,2009.1,2009.0,2.06214326]
[1743010133054,8.18685,2009.1,2009.0,4.35504326]
[1743010133256,7.1915,2009.1,2009.0,4.35504326]
[1743010133560,4.7531,2009.1,2009.0,4.35504326]
[1743010134154,0.54110001,2009.1,2009.0,4.35504326]
[1743010134358,4.20299,2009.5,2009.4,0.9952]
[1743010134555,5.58879,2009.5,2009.4,0.9969]
[1743010134761,5.58879,2009.5,2009.4,1.9921]
[1743010135666,4.5936,2009.5,2009.4,1.9921]
[1743010136157,5.58875,2009.5,2009.4,1.9921]
[1743010136660,0.99535,2009.1,2009.0,2.06064326]
[1743010136955,0.99535,2009.1,2009.0,2.72094326]
[1743010137760,0.99535,2009.1,2009.0,1.72554326]
[1743010137963,2.29145,2009.1,2009.0,1.72554326]
[1743010138166,2.29145,2009.1,2009.0,2.72094326]
[1743010138655,2.29145,2009.1,2009.0,4.03644326]
[1743010140652,2.29145,2009.1,2009.0,3.04104326]
[1743010141559,2.29145,2009.1,2009.0,4.03644326]
[1743010141760,2.29145,2009.1,2009.0,3.04104326]
[1743010142958,2.29145,2009.1,2009.0,1.72554326]
[1743010145771,2.29145,2009.1,2009.0,2.72094326]
[1743010145967,2.29145,2009.1,2009.0,4.10834326]
[1743010147273,1.2961,2009.1,2009.0,4.10834326]
[1743010147567,0.9953,2009.2,2009.1,0.99535]
[1743010147767,0.99528,2009.3,2009.2,0.99523]
[1743010147959,1.4009,2009.3,2009.2,2.32063]
[1743010148164,2.39615,2009.3,2009.2,3.00713]
[1743010148362,1.4009,2009.3,2009.2,3.00713]
[1743010149572,2.39615,2009.3,2009.2,3.00713]
[1743010149877,1.4009,2009.3,2009.2,3.00713]
[1743010150066,2.39615,2009.3,2009.2,3.00713]
[1743010150266,1.4009,2009.3,2009.2,3.00713]
[1743010150676,2.39615,2009.3,2009.2,3.00713]
[1743010150868,1.4009,2009.3,2009.2,3.00713]
[1743010151371,3.2078,2009.5,2009.4,0.9952]
[1743010151372,4.20299,2009.5,2009.4,0.9952]
[1743010151675,5.61125,2009.5,2009.4,0.9952]
[1743010151871,4.6161,2009.5,2009.4,0.9952]
[1743010152277,5.61125,2009.5,2009.4,0.9952]
[1743010154173,4.6161,2009.5,2009.4,0.9952]
[1743010154373,0.99503,2009.8,2009.5,0.99515]
[1743010154578,1.3308,2009.7,2009.6,3.0715]
[1743010155176,0.99498,2009.9,2009.8,0.995]
[1743010155481,2.32578,2009.9,2009.8,0.995]
[1743010155875,2.32578,2009.9,2009.8,2.3672]
[1743010156488,1.3308,2009.9,2009.8,2.3672]
[1743010156672,3.2078,2010.0,2009.9,0.99495]
[1743010156871,1.3308,2010.0,2009.9,2.36715]
[1743010162993,0.99496,2009.9,2009.8,0.99495]
[1743010163296,0.995,2009.8,2009.7,0.97825449]
[1743010163499,1.6833,2009.8,2009.7,1.97330449]
[1743010163795,1.6833,2009.8,2009.7,0.97825449]
[1743010163990,2.9851,2009.8,2009.7,0.97825449]
[1743010166105,2.9851,2009.8,2009.7,1.97330449]
[1743010166401,2.9851,2009.8,2009.7,3.35500449]
[1743010166592,1.3018,2009.8,2009.7,3.35500449]
[1743010166988,2.2968,2009.8,2009.7,3.35500449]
[1743010167493,1.3018,2009.8,2009.7,3.35500449]
[1743010168598,2.2968,2009.8,2009.7,3.35500449]
[1743010170603,1.3018,2009.8,2009.7,3.35500449]
[1743010170802,2.2968,2009.8,2009.7,3.35500449]
[1743010171900,2.2968,2009.8,2009.7,0.97825449]
[1743010175812,2.2968,2009.8,2009.7,0.99324392]
[1743010177314,2.2968,2009.8,2009.7,1.98829392]
[1743010178213,2.2968,2009.8,2009.7,3.36109392]
[1743010178910,1.3018,2009.8,2009.7,3.36109392]
[1743010179111,1.3018,2009.8,2009.7,4.01829392]
[1743010179313,2.2968,2009.8,2009.7,4.01829392]
[1743010179817,1.3018,2009.8,2009.7,4.01829392]
[1743010180615,2.2968,2009.8,2009.7,4.01829392]
[1743010180813,1.3018,2009.8,2009.7,3.36109392]
[1743010181615,2.2968,2009.8,2009.7,3.36109392]
[1743010181810,2.2968,2009.8,2009.7,2.36604392]
[1743010182312,2.2968,2009.8,2009.7,3.36109392]
[1743010182520,2.2968,2009.8,2009.7,2.36604392]
[1743010182708,2.2968,2009.8,2009.7,3.36109392]
[1743010185310,2.2968,2009.8,2009.7,2.36604392]
[1743010185716,2.2968,2009.8,2009.7,0.99324392]
[1743010189019,2.2968,2009.8,2009.7,1.98829392]
[1743010189322,2.2968,2009.8,2009.7,0.99324392]
[1743010189509,2.2968,2009.8,2009.7,1.98829392]
[1743010190714,2.2968,2009.8,2009.7,3.41169392]
[1743010191421,1.3018,2009.8,2009.7,4.11779392]
[1743010192216,2.2968,2009.8,2009.7,4.11779392]
[1743010192814,1.3018,2009.8,2009.7,4.11779392]
[1743010193722,2.2968,2009.8,2009.7,4.11779392]
[1743010196320,1.3018,2009.8,2009.7,4.11779392]
[1743010196619,0.99499,2009.9,2009.8,0.995]
[1743010196920,0.99499,2009.9,2009.8,2.42838943]
[1743010197623,0.0074625,2010.1,2009.8,12.76218943]
[1743010197815,3.2078,2010.5,2010.4,0.9947]
[1743010198816,3.2078,2010.5,2010.4,1.66218943]
[1743010199114,4.20245,2010.5,2010.4,2.56146301]
[1743010199320,5.51385,2010.5,2010.4,2.56146301]
[1743010200820,5.51385,2010.5,2010.4,1.56676301]
[1743010201018,5.51385,2010.5,2010.4,0.91426301]
[1743010202519,5.51385,2010.5,2010.4,1.90896301]
[1743010203318,4.5192,2010.5,2010.4,2.56836301]
[1743010203719,4.5192,2010.5,2010.4,3.90346301]
[1743010204321,5.51385,2010.5,2010.4,3.90346301]
[1743010204829,5.51385,2010.5,2010.4,2.90876301]
[1743010205024,5.51385,2010.5,2010.4,0.91426301]
[1743010205332,5.51385,2010.5,2010.4,1.90896301]
[1743010206327,5.51385,2010.5,2010.4,0.91426301]
[1743010206528,5.51385,2010.5,2010.4,1.90896301]
[1743010208429,5.51385,2010.5,2010.4,0.91426301]
[1743010208834,4.5192,2010.5,2010.4,1.90896301]
[1743010209034,1.3114,2010.5,2010.4,3.21996301]
[1743010209233,1.0020525,2010.7,2010.4,3.21996301]
[1743010209536,0.0074625,2010.7,2010.6,0.9946]
[1743010209933,0.0074625,2010.7,2010.6,1.00958943]
[1743010210131,1.0020125,2010.7,2010.6,1.00958943]
[1743010210329,1.0020125,2010.7,2010.6,0.01498943]
[1743010210640,1.0020125,2010.7,2010.6,0.92763301]
[1743010210932,1.0020125,2010.7,2010.6,1.92223301]
[1743010211124,1.0020125,2010.7,2010.6,3.23323301]
[1743010211533,0.0074625,2010.7,2010.6,3.23323301]
[1743010212231,0.0074625,2010.7,2010.6,3.24323301]
[1743010212436,0.0074625,2010.7,2010.6,3.23323301]
[1743010212934,0.0074625,2010.7,2010.6,5.90323301]
[1743010213335,0.0074625,2010.7,2010.6,3.23323301]
[1743010214233,0.0074625,2010.7,2010.6,2.32058943]
[1743010216642,1.0020125,2010.7,2010.6,1.32598943]
[1743010216939,1.0020125,2010.7,2010.6,0.01498943]
[1743010217133,1.0020125,2010.7,2010.6,0.93193911]
[1743010217333,1.7012125,2010.7,2010.6,0.93193911]
[1743010217533,3.0503125,2010.7,2010.6,0.93193911]
[1743010219439,0.99475,2010.3,2010.2,0.0074625]
[1743010219645,0.99475,2010.3,2010.2,1.0022625]
[1743010219943,0.99475,2010.3,2010.2,0.0074625]
[1743010220553,3.12855,2010.3,2010.2,0.0074625]
[1743010223041,3.12855,2010.3,2010.2,1.0022625]
[1743010223345,1.4319,2010.3,2010.2,1.0022625]
[1743010223651,3.2078,2010.5,2010.4,0.9947]
[1743010223849,4.5577,2010.5,2010.4,0.9947]
[1743010224145,5.55235,2010.5,2010.4,0.9947]
[1743010224351,0.9947,2010.4,2010.3,0.6579]
[1743010224652,2.3446,2010.4,2010.3,1.65265]
[1743010225049,0.0074625,2010.7,2010.4,0.9947]
[1743010225246,3.2078,2011.4,2010.7,2.48639]
[1743010225446,0.99431,2011.2,2011.1,0.99433]
[1743010225752,4.5577,2011.4,2011.2,0.99431]
[1743010225753,1.3499,2011.3,2011.2,0.99431]
[1743010225948,2.34416,2011.3,2011.1,1.3179]
[1743010226142,0.99431,2011.2,2011.1,1.3179]
[1743010226343,1.3499,2011.2,2011.1,2.31226]
[1743010226840,2.34421,2011.2,2011.1,2.31226]
[1743010227437,1.3499,2011.2,2011.1,2.31226]
[1743010228550,2.34421,2011.2,2011.1,2.31226]
[1743010229552,1.3499,2011.2,2011.1,2.31226]
[1743010229750,2.34421,2011.2,2011.1,2.31226]
[1743010230143,1.3499,2011.2,2011.1,2.31226]
[1743010230344,0.99436,2011.1,2011.0,1.97585389]
[1743010230653,0.99436,2011.1,2011.0,0.98145389]
[1743010230848,1.66856,2011.1,2011.0,1.97586389]
[1743010231043,1.66856,2011.1,2011.0,0.98145389]
[1743010231250,1.66856,2011.1,2011.0,1.97586389]
[1743010232949,2.34936,2011.1,2011.0,0.98145389]
[1743010233644,2.34936,2011.1,2011.0,1.04050415]
[1743010234250,3.76436,2011.1,2011.0,1.04050415]
[1743010236053,3.76436,2011.1,2011.0,2.03491415]
[1743010236253,3.76436,2011.1,2011.0,1.04050415]
[1743010236659,3.76436,2011.1,2011.0,2.03491415]
[1743010236846,3.76436,2011.1,2011.0,1.04050415]
[1743010237853,6.97216,2011.1,2011.0,1.04050415]
[1743010238762,6.97216,2011.1,2011.0,0.05905026]
[1743010239057,0.99455,2010.7,2010.6,4.91508]
[1743010239364,0.99455,2010.8,2010.7,0.99451]
[1743010239557,3.79652,2011.0,2010.9,0.99442]
[1743010239558,0.99446,2011.0,2010.9,0.99442]
[1743010239958,2.48575,2011.3,2011.0,0.99435]
[1743010240160,0.99435,2011.2,2011.1,1.68601]
[1743010240465,2.30475,2011.2,2011.1,0.6917]
[1743010240851,2.30475,2011.2,2011.1,2.1255]
[1743010241046,2.30475,2011.2,2011.1,0.6917]
[1743010241253,0.99441,2011.0,2010.9,3.2078]
[1743010241554,3.79627,2011.2,2010.8,3.11998]
[1743010241555,0.99446,2010.9,2010.8,3.11998]
[1743010243261,0.99446,2010.9,2010.8,4.03534803]
[1743010244262,0.99446,2010.9,2010.8,4.71664803]
[1743010245866,2.36904,2011.0,2010.9,0.99446]
[1743010246067,2.36904,2011.0,2010.9,2.37506]
[1743010246665,2.36904,2011.0,2010.9,1.3806]
[1743010247259,2.36904,2011.0,2010.9,0.96911358]
[1743010250771,0.99446,2010.9,2010.8,1.3477]
[1743010250972,2.42576,2010.9,2010.8,1.3477]
[1743010252665,2.42576,2010.9,2010.8,2.26348378]
[1743010253565,5.63356,2010.9,2010.8,0.91578378]
[1743010253764,3.2078,2011.2,2010.8,0.91578378]
[1743010253971,0.99435,2011.2,2011.1,0.99431]
[1743010254558,0.99436,2011.1,2011.0,3.04647]
[1743010260574,0.99436,2011.1,2011.0,0.6715]
[1743010261169,0.99446,2010.9,2010.8,0.91578378]
[1743010261871,4.20226,2010.9,2010.8,0.91578378]
[1743010262958,0.99445,2011.0,2010.9,0.99446]
[1743010263162,0.99445,2011.0,2010.9,3.05856]
[1743010263465,0.99445,2011.0,2010.9,0.6933]
[1743010263665,0.99446,2010.9,2010.8,2.30298378]
[1743010263972,3.2078,2010.9,2010.2,0.0074625]
[1743010264270,4.20255,2010.3,2010.2,0.0074625]
[1743010264567,0.995,2009.8,2009.7,5.59003]
[1743010264772,2.48738,2009.9,2009.5,1.3872]
[1743010264964,2.48738,2009.9,2009.5,1.02510163]
[1743010264965,0.9951,2009.6,2009.5,1.02510163]
[1743010265360,1.6731,2009.6,2009.5,1.02510163]
[1743010265573,0.9953,2009.2,2009.1,1.3872]
[1743010265868,0.9953,2009.2,2009.1,2.41248188]
[1743010266065,0.9953,2009.2,2009.1,1.02528188]
[1743010266266,2.2922,2009.2,2009.1,1.02528188]
[1743010266462,5.6882,2009.2,2009.1,1.02528188]
[1743010266665,5.6882,2009.2,2009.1,0.6810501]
[1743010272469,5.6882,2009.2,2009.1,1.6764001]
[1743010272675,5.6882,2009.2,2009.1,0.6810501]
[1743010273482,2.2922,2009.2,2009.1,0.6810501]
[1743010274280,2.2922,2009.2,2009.1,2.0461501]
[1743010274582,2.2922,2009.2,2009.1,0.6810501]
[1743010275867,4.7922,2009.2,2009.1,1e-07]
[1743010276072,0.9954,2009.0,2008.9,0.0074625]
[1743010276373,7.5942,2009.0,2008.9,0.0074625]
[1743010276573,10.0942,2009.0,2008.9,0.0074625]
[1743010276773,11.5073,2009.0,2008.9,0.0074625]
[1743010276981,9.0073,2009.0,2008.9,0.0074625]
[1743010279281,9.0073,2009.0,2008.9,2.5e-06]
[1743010280883,17.3373,2009.0,2008.9,2.5e-06]
[1743010281390,16.42409275,2009.0,2007.9,1.645]
[1743010281573,4.20359,2008.2,2008.1,0.91068848]
[1743010282183,5.60869,2008.2,2008.1,0.91068848]
[1743010282383,5.60869,2008.2,2008.1,1.90652848]
[1743010282686,5.60869,2008.2,2008.1,0.91068848]
[1743010289383,0.99584,2008.1,2008.0,1.3679]
[1743010289687,2.41974,2008.1,2008.0,2.36379]
[1743010289886,0.99584,2008.1,2008.0,2.36379]
[1743010290282,0.99584,2008.1,2008.0,1.3679]
[1743010290483,2.41974,2008.1,2008.0,1.3679]
[1743010290678,2.41974,2008.1,2008.0,2.33549546]
[1743010292783,2.41974,2008.1,2008.0,1.3679]
[1743010293690,0.99584,2008.1,2008.0,2.36379]
[1743010293992,4.20362,2008.2,2008.1,0.99584]
[1743010294186,0.99575,2008.3,2008.2,0.99574]
[1743010294387,0.99575,2008.3,2008.2,2.41274]
[1743010294587,1.0031925,2008.4,2008.3,0.99574]
[1743010294892,1.0031525,2008.4,2008.3,0.99574]
[1743010297095,0.99574,2008.3,2008.2,2.41277]
[1743010297397,4.20354,2008.3,2008.2,1.417]
[1743010297692,5.60924,2008.3,2008.2,1.417]
[1743010297900,5.83,2009.9,2008.2,57.502]
[1743010298099,0.9953,2009.3,2009.2,0.99526]
[1743010298397,2.48806,2009.4,2009.1,1.4267]
[1743010298398,0.9953,2009.2,2009.1,1.4267]
[1743010298793,0.99545,2009.0,2008.9,0.99544]
[1743010298996,0.99545,2009.0,2008.9,2.42214]
[1743010299197,2.40115,2009.0,2008.9,2.42214]
[1743010299796,1.4057,2009.0,2008.9,2.42214]
[1743010299994,2.4011,2009.0,2008.9,1.4267]
[1743010300196,2.4011,2009.0,2008.9,2.42215]
[1743010301494,2.4011,2009.0,2008.8,3.2078]
[1743010301495,0.99545,2008.9,2008.8,3.2078]
[1743010301800,0.99549,2008.8,2008.7,0.0074625]
[1743010302302,2.33319,2008.8,2008.7,0.0074625]
[1743010304304,2.33319,2008.8,2008.7,1.3032625]
[1743010305904,2.33319,2008.8,2008.7,2.2988025]
[1743010306101,1.0027625,2009.2,2009.1,0.99535]
[1743010306311,1.0027625,2009.2,2009.1,4.20315]
[1743010306894,0.99535,2009.1,2009.0,1.4187]
[1743010307106,0.99545,2009.0,2008.9,0.99541]
[1743010307300,0.99545,2009.0,2008.9,2.41411]
[1743010307609,2.30395,2009.0,2008.9,2.41411]
[1743010307905,2.30395,2009.0,2008.9,1.4187]
[1743010308221,0.99549,2008.8,2008.7,0.0074625]
[1743010308508,4.46549,2008.8,2008.7,0.0074625]
[1743010308901,6.46899,2008.8,2008.7,0.0074625]
[1743010309301,0.99564,2008.5,2008.4,3.2078]
[1743010309604,0.99564,2008.5,2008.2,2.34869]
[1743010309605,0.99574,2008.3,2008.2,2.34869]
[1743010310710,2.42894,2008.3,2008.2,2.34869]
[1743010311009,2.42894,2008.3,2008.2,1.3529]
[1743010312103,0.99579,2008.2,2008.1,4.89814]
[1743010312304,2.38229,2008.2,2008.1,5.2856]
[1743010312605,5.7035125,2009.2,2008.7,2.48885]
[1743010312810,2.38185,2009.1,2009.0,3.2078]
[1743010313008,2.38185,2009.1,2009.0,4.5911]
[1743010313203,2.38185,2009.1,2009.0,5.5865]
[1743010313805,0.0074625,2009.2,2009.1,0.99535]
[1743010314108,1.0027625,2009.2,2009.1,0.99535]
[1743010314313,0.99535,2009.1,2009.0,5.58646]
[1743010314515,2.38185,2009.1,2009.0,5.58646]
[1743010314703,2.38185,2009.1,2009.0,3.2078]
[1743010314904,0.99554,2008.7,2008.6,3.2078]
[1743010315303,0.99569,2008.4,2008.3,5.2636]
[1743010315507,0.99569,2008.4,2008.3,6.25934]
[1743010316404,0.99569,2008.4,2008.3,3.2078]
[1743010316599,0.99569,2008.4,2008.3,4.20354]
[1743010317315,0.99584,2008.2,2008.0,3.2152625]
[1743010317515,0.99584,2008.2,2008.1,5.5558]
[1743010317701,2.36498,2008.3,2008.2,0.99579]
[1743010317905,2.36498,2008.3,2008.2,2.34799]
[1743010318114,2.36498,2008.3,2008.2,1.3522]
[1743010318811,2.36498,2008.3,2008.1,4.20362]
[1743010318812,0.99579,2008.2,2008.1,4.20362]
[1743010319016,2.4957225,2009.2,2008.1,11.1035]
[1743010319201,0.99549,2008.9,2008.8,4.20325]
[1743010319400,0.99549,2008.9,2008.8,4.20329]
[1743010321014,2.48874,2008.8,2008.5,3.2078]
[1743010321313,0.99559,2008.6,2008.5,3.2078]
[1743010321610,0.99559,2008.6,2008.5,4.20344]
[1743010322420,0.99559,2008.6,2008.5,3.2078]
[1743010322807,0.99559,2008.6,2008.5,4.20344]
[1743010323006,2.30839,2008.6,2008.5,5.53564]
[1743010323416,2.30839,2008.6,2008.5,3.2078]
[1743010323613,6.54339,2008.6,2008.5,3.2078]
[1743010323816,0.99564,2008.5,2008.4,4.20347]
[1743010324015,2.30844,2008.5,2008.4,4.20347]
[1743010325415,4.97733,2008.9,2008.4,4.20347]
[1743010325416,0.0074625,2009.2,2009.1,0.99535]
[1743010325619,0.0074625,2009.2,2009.1,4.20315]
[1743010328522,8.13594,2009.6,2009.5,0.99515]
[1743010328719,0.99525,2009.4,2009.3,3.2078]
[1743010328923,0.99546,2009.0,2008.9,3.2078]
[1743010329114,0.99546,2009.0,2008.9,0.99541]
[1743010329323,0.99549,2008.9,2008.8,0.99548]
[1743010329518,0.99549,2008.8,2008.7,2.34311]
[1743010330626,2.29529,2008.8,2008.7,2.34311]
[1743010330837,0.99554,2008.7,2008.6,51.2040225]
[1743010331127,2.29534,2008.7,2008.6,51.2040225]
[1743010331334,2.29534,2008.7,2008.6,55.8131225]
[1743010332637,1.2998,2008.7,2008.6,55.8131225]
[1743010332936,2.29534,2008.7,2008.6,5.6121225]
[1743010334234,0.0074625,2009.1,2009.0,0.9954]
[1743010334632,0.0074625,2009.1,2009.0,2.3894]
[1743010334831,1.0028125,2009.1,2009.0,2.3894]
[1743010335432,1.0028125,2009.1,2009.0,0.9954]
[1743010335831,1.0028125,2009.1,2008.9,4.20325]
[1743010335832,0.9954,2009.0,2008.9,4.20325]
[1743010336033,0.99545,2008.9,2008.8,1.70475]
[1743010336226,0.99549,2008.8,2008.7,1.394]
[1743010336537,0.99554,2008.7,2008.6,3.2152625]
[1743010336736,0.99554,2008.7,2008.6,4.2108525]
[1743010337138,0.99554,2008.7,2008.6,3.2152625]
[1743010337540,0.99554,2008.7,2008.6,0.0074625]
[1743010339044,0.99554,2008.7,2008.6,1.0030525]
[1743010339241,0.99554,2008.7,2008.6,0.0074625]
[1743010340641,0.99584,2008.1,2008.0,3.2078]
[1743010340832,0.99594,2007.9,2007.8,4.20372]
[1743010341531,1.4194,2008.0,2007.6,0.0074625]
[1743010341737,0.99604,2007.7,2007.6,0.0074625]
[1743010342133,1.69564,2007.7,2007.6,0.0074625]
[1743010342334,2.38054,2007.7,2007.6,0.0074625]
[1743010342535,3.77234,2007.7,2007.6,0.0074625]
[1743010343431,3.77234,2007.7,2007.6,2.5e-06]
[1743010343633,6.27234,2007.7,2007.6,2.5e-06]
[1743010343836,3.77234,2007.7,2007.6,2.5e-06]
[1743010344439,6.27234,2007.7,2007.6,2.5e-06]
[1743010345142,3.77234,2007.7,2007.6,2.5e-06]
[1743010345345,6.27234,2007.7,2007.6,2.5e-06]
[1743010345534,12.10234,2007.7,2007.6,2.5e-06]
[1743010345736,12.18464403,2007.7,2007.6,2.5e-06]
[1743010345932,2.49168,2006.5,2006.3,3.2078]
[1743010346245,0.99678,2006.2,2006.1,11.58304972]
[1743010346448,0.99678,2006.3,2006.1,15.07987972]
[1743010346644,0.99678,2006.2,2006.1,0.99683]
[1743010346946,0.99683,2006.1,2006.0,3.2078]
[1743010347337,0.99688,2006.0,2005.9,0.0074625]
[1743010347534,0.99688,2006.0,2005.9,1.0043925]
[1743010347735,0.99688,2006.0,2005.9,1.0043625]
[1743010347939,0.0074625,2006.4,2005.9,9.9996825]
[1743010348248,0.99674,2006.3,2006.2,4.20456]
[1743010348638,1.0041925,2006.4,2006.3,0.99674]
[1743010348941,0.0074625,2006.4,2006.3,0.99674]
[1743010349147,1.0041525,2006.4,2006.3,41.79674]
[1743010349346,1.0041525,2006.4,2006.3,40.8]
[1743010351136,1.0041525,2006.4,2006.3,41.79674]
[1743010351331,0.0074625,2006.4,2006.3,41.79674]
[1743010351635,0.0074625,2006.4,2006.3,42.50454]
[1743010352241,3.18868,2007.0,2006.7,0.99651]
[1743010352447,0.99656,2006.8,2006.7,0.99651]
[1743010352642,3.582,2007.3,2006.8,0.99644]
[1743010352643,0.99648,2006.9,2006.8,0.99644]
[1743010352837,2.49073,2007.2,2006.6,5.69927]
[1743010353035,0.99639,2007.0,2006.9,3.2078]
[1743010353651,0.99649,2006.8,2006.7,0.9965]
[1743010354035,1.4214,2007.0,2006.7,3.49651]
[1743010354238,0.99645,2006.9,2006.8,0.99647]
[1743010354445,2.41782,2007.0,2006.6,3.2078]
[1743010354641,0.99638,2007.1,2007.0,0.99639]
[1743010354844,0.99634,2007.1,2007.0,0.99639]
[1743010355244,0.0074625,2007.2,2007.1,0.99634]
[1743010355642,0.0074625,2007.2,2007.1,4.57034]
[1743010356851,0.0074625,2007.2,2007.1,7.07034]
[1743010357148,0.99612,2007.6,2007.5,0.99608]
[1743010357348,2.40642,2007.6,2007.5,0.99608]
[1743010357946,2.40642,2007.6,2007.3,3.2078]
[1743010357947,0.99619,2007.5,2007.4,0.99615]
[1743010358142,2.40699,2007.5,2007.4,0.99615]
[1743010359348,1.4108,2007.5,2007.4,0.99615]
[1743010359553,1.0035225,2007.7,2007.3,5.69831]
[1743010359741,1.0035225,2007.7,2007.6,3.2078]
[1743010360143,1.0035225,2007.7,2007.6,4.20389]
[1743010360943,0.0074625,2007.7,2007.6,4.20389]
[1743010362757,0.0074625,2007.7,2007.4,0.99615]
[1743010362758,0.99614,2007.5,2007.4,0.99615]
[1743010362946,2.4976625,2007.7,2007.3,4.204]
[1743010362947,0.99619,2007.4,2007.3,4.204]
[1743010363146,2.30999,2007.4,2007.3,4.204]
[1743010363348,0.99628,2007.3,2007.0,3.15117]
[1743010363556,1.3138,2007.3,2007.2,4.20404]
[1743010363750,2.33277,2007.5,2007.4,0.99619]
[1743010365158,1.3366,2007.5,2007.3,0.99619]
[1743010365355,0.99622,2007.4,2007.3,0.99619]
[1743010365556,0.99624,2007.3,2007.2,4.20404]
[1743010365755,2.33284,2007.3,2007.2,4.20404]
[1743010366257,3.2153225,2007.7,2007.4,0.99618]
[1743010366459,0.99621,2007.4,2007.3,1.3405]
[1743010367161,0.99618,2007.5,2007.3,1.3405]
[1743010367451,2.33273,2007.6,2007.5,0.99614]
[1743010367961,2.33273,2007.6,2007.5,4.20394]
[1743010368161,2.33273,2007.6,2007.5,0.99614]
[1743010368362,0.99619,2007.5,2007.4,0.99616]
[1743010368566,2.34529,2007.5,2007.4,0.99616]
[1743010369759,0.99619,2007.4,2007.3,2.33672]
[1743010369958,0.6502,2007.9,2007.3,2.33672]
[1743010369959,0.99587,2008.1,2008.0,0.99584]
[1743010370157,0.99586,2008.1,2008.0,0.99584]
[1743010370465,0.99586,2008.1,2007.9,3.2078]
[1743010370466,0.99583,2008.2,2008.1,0.99582]
[1743010370662,2.32473,2008.2,2008.1,0.99582]
[1743010370861,0.99584,2008.1,2008.0,2.41755]
[1743010371063,1.3289,2008.1,2008.0,2.41755]
[1743010371755,2.32474,2008.1,2008.0,2.41755]
[1743010372764,1.3289,2008.1,2008.0,2.41755]
[1743010373063,0.99589,2008.0,2007.9,3.2078]
[1743010373262,0.99594,2007.9,2007.8,1.0034425]
[1743010373463,2.33234,2007.9,2007.8,0.0074625]
[1743010374368,2.33234,2007.9,2007.8,4.2112525]
[1743010375961,1.3364,2007.9,2007.8,4.2112525]
[1743010376168,2.33234,2007.9,2007.8,4.2112525]
[1743010377669,1.3364,2007.9,2007.8,4.2112525]
[1743010378070,0.99586,2008.2,2008.1,0.99581]
[1743010378273,1.67726,2008.2,2008.1,0.99581]
[1743010378677,0.99594,2008.0,2007.9,0.99586]
[1743010378866,0.99588,2008.1,2008.0,0.99584]
[1743010379379,2.48962,2008.1,2007.8,3.2152625]
[1743010379670,0.99594,2007.9,2007.8,0.0074625]
[1743010379874,0.99619,2007.4,2007.3,50.227]
[1743010380177,0.99619,2007.4,2007.2,4.20404]
[1743010380178,0.99629,2007.2,2007.1,0.99631]
[1743010380373,0.99639,2007.0,2006.9,4.20418]
[1743010380678,2.40336,2007.1,2007.0,0.99639]
[1743010380879,1.407,2007.1,2007.0,0.99639]
[1743010381082,1.407,2007.1,2006.9,4.20421]
[1743010381083,0.99639,2007.0,2006.9,4.20421]